Cogmind - Beta 14 @@@ ROGUE MODE // 2024.08.28 @ 13:29:45 Player: star Result: Destroyed by as-05131 with Assembled Maul Performance ------------- Evolutions (1) 500 Regions Visited (5) 1000 Robots Destroyed (75) 375 Value Destroyed (1840) 1840 Prototype IDs (29) 580 Alien Tech Used (0) 0 Bonus (255) 255 TOTAL SCORE: 4550 Bonus ------- High Alert Combat Kills 75 Follower Combat Kills 21 Aligned with FarCom 300 Friendly Fire -141 Cogmind --------- Core Integrity 0/400 Matter 286/300 Energy 100/100 System Corruption 10% Temperature Cool (0) Movement Treading (170) Location -9/Exiles Parts ------- > --- POWER (1) -------- (None) > --- PROPULSION (2) --- Armored Treads > --- UTILITY (4) ------ Large Storage Unit > --- WEAPON (2) ------- (None) > --- INVENTORY (15) --- Armored Treads Improved Flight Unit Improved Flight Unit Improved Flight Unit Improved Flight Unit Improved Flight Unit Medium Matter Pod (100) Experimental Sensor Array Hacking Suite Heavy EM Pulse Gun Improved Medium Laser Enhanced Autogun Enhanced Autogun Mini Grenade Launcher Peak State ------------ > --- POWER ------------ Improved Ion Engine > --- PROPULSION ------- Armored Treads Armored Treads > --- UTILITY ---------- Improved Heat Sink Large Storage Unit Medium Armor Plating Shield Generator > --- WEAPON ----------- Field Lobotomy Kit > --- INVENTORY -------- Armored Treads Improved Flight Unit Improved Flight Unit Improved Flight Unit Improved Flight Unit Improved Flight Unit Medium Matter Pod Experimental Sensor Array Hacking Suite Heavy EM Pulse Gun Improved Medium Laser Enhanced Autogun Enhanced Autogun Mini Grenade Launcher [Rating: 30] Favorites ----------- Power Improved Ion Engine Engine Improved Ion Engine Power Core Light Nuclear Core Propulsion Light Treads Treads Light Treads Flight Unit Improved Flight Unit Utility Large Storage Unit Device Improved Heat Sink Storage Large Storage Unit Processor Targeting Computer Protection Medium Armor Plating Weapon Enhanced Autogun Energy Gun Improved EM Shotgun Ballistic Gun Enhanced Autogun Ballistic Cannon Light Cannon Launcher EMP Blaster Special Weapon Field Lobotomy Kit Build | -11 -10 -10 -9 -9 -9 ------- Run | Yrd Mat Min Mat Min Exi Slots Evolved 2 | . . . 2 . . Power . | . . . . . . Propulsion . | . . . . . . Utility 2 | . . . 2 . . Weapon . | . . . . . . Parts Attached 52 | 6 11 3 29 2 1 Power 9 | 1 3 1 4 . . Engine 8 | 1 2 1 4 . . Core 1 | . 1 . . . . Reactor . | . . . . . . Propulsion 9 | 2 . . 7 . . Treads 8 | 2 . . 6 . . Leg . | . . . . . . Wheel . | . . . . . . Hover . | . . . . . . Flight 1 | . . . 1 . . Utility 11 | 1 3 . 7 . . Device 2 | . . . 2 . . Storage 3 | 1 2 . . . . Processor 2 | . . . 2 . . Hackware . | . . . . . . Protection 4 | . 1 . 3 . . Artifact . | . . . . . . Weapon 23 | 2 5 2 11 2 1 Energy Gun 9 | . 2 1 6 . . Energy Cannon . | . . . . . . Ballistic Gun 6 | 2 . 1 2 1 . Ballistic Cannon 3 | . 3 . . . . Launcher 4 | . . . 3 1 . Special Weapon 1 | . . . . . 1 Impact Weapon . | . . . . . . Slashing Weapon . | . . . . . . Piercing Weapon . | . . . . . . Special Melee Weapon . | . . . . . . Unidentified Prototypes 4 | . . . 4 . . Parts Lost 10 | . . . 5 . 5 Power 2 | . . . 1 . 1 Propulsion 2 | . . . 2 . . Utility 5 | . . . 2 . 3 Weapon 1 | . . . . . 1 Highest Loss Streak 5 | . . . 3 . 5 To Critical Strikes 1 | . . . 1 . . Average Slot Usage (%) 96 | . 98 100 95 100 75 Engine 11 | . 13 14 11 11 10 Treads 23 | . 28 28 20 22 21 Device 11 | . . . 12 22 21 Storage 11 | . 14 14 11 11 11 Processor 2 | . . . 6 . . Protection 11 | . 12 14 11 11 10 Energy Gun 11 | . 13 14 10 11 . Ballistic Gun 7 | . 4 1 11 10 . Ballistic Cannon 3 | . 9 12 . . . Peak Build Rating 30 | 6 9 17 27 27 30 Average Rating 18 | 5 7 9 23 26 20 On Entrance 14 | . 6 8 17 27 27 Naked Turns . | . . . . . . Heaviest Build 44 | 13 32 36 44 43 37 Greatest Support 40 | 40 40 40 40 40 40 Greatest Overweight (x) 7 | . . . 7 1 . Average Overweight (x) . | . . . . 1 . Largest Inventory Capacity 15 | 8 15 15 15 15 15 Average Capacity 14 | 7 11 15 15 15 15 Most Carried 15 | . 6 12 15 15 15 Average Carried 11 | . 3 7 14 15 14 Final Capacity 15 | 8 15 15 15 15 15 Final Carried 15 | . 6 12 15 15 14 Class Distribution -------------------- 92% | Mutant 7% | Scavenger-Mutant Dominant Class ---------------- Mutant | -10/Materials Mutant | -10/Mines Mutant | -9/Materials Mutant | -9/Mines Mutant | -9/Exiles Resources | -11 -10 -10 -9 -9 -9 ----------- Run | Yrd Mat Min Mat Min Exi Matter Collected 1328 | 208 449 50 516 105 . Remotely . | . . . . . . Salvage Created 2428 | . 453 141 1560 274 . Parts 173 | . 22 14 116 21 . Haulers Intercepted 6 | . 1 . 5 . . Recyclers Shooed 1 | . . . 1 . . Parts Field Recycled . | . . . . . . Retrieved Matter . | . . . . . . Parts Self-Destructed . | . . . . . . Prevented . | . . . . . . Kills | -11 -10 -10 -9 -9 -9 ------- Run | Yrd Mat Min Mat Min Exi Combat Hostiles Destroyed 54 | . 11 6 28 9 . Guns 39 | . 7 4 23 5 . Cannons 6 | . 4 2 . . . AOE 9 | . . . 5 4 . Classes Destroyed 10 | . 3 1 6 . . Worker 4 | . . . 1 3 . Builder 2 | . . . 2 . . Hauler 6 | . 1 . 5 . . Recycler 3 | . . . 2 1 . Operator 3 | . 2 . 1 . . Watcher 2 | . . . 2 . . Swarmer 21 | . . 6 8 7 . Grunt 23 | . 11 . 11 1 . Brawler 2 | . . . 1 1 . Sentry 8 | . . . 8 . . Thug 1 | . . 1 . . . Best Kill Streak 11 | . 2 3 11 5 . Combat Bots Only 7 | . 2 3 7 4 . Max Kills in Single Turn 4 | . 1 1 4 3 . Gunslinging 1 | . . . . 1 . Exploded 2 | . . . 2 2 . Melee . | . . . . . . Uniques/NPCs Destroyed . | . . . . . . Combat | -11 -10 -10 -9 -9 -9 -------- Run | Yrd Mat Min Mat Min Exi Hostile Shots Fired 254 | . 45 16 135 14 44 Missed 58 | . 14 5 29 4 6 Damage Taken 2641 | . 398 89 1283 93 778 Core 537 | . 90 16 237 13 181 Absorbed by Shields 81 | . . . . 39 42 Redirected to Shielding 149 | . 16 8 125 . . Core Remaining (%) 78 | 100 . 57 . . . Volleys Fired 146 | . 49 9 77 7 4 Largest 2 | . 2 2 2 2 1 Hottest 105 | . 105 100 100 75 . Shots Fired 283 | . 97 18 151 13 4 Gun 235 | . 66 11 147 11 . Cannon 38 | . 31 7 . . . Launcher 6 | . . . 4 2 . Special 4 | . . . . . 4 Kinetic 151 | . 60 9 77 5 . Thermal 116 | . 37 9 70 . . Explosive 2 | . . . . 2 . Electromagnetic 10 | . . . 4 6 . Robot Hit Streak 16 | . 9 5 16 4 4 Robot Miss Streak 4 | . 4 2 4 2 . Penetration Max . | . . . . . . Secondary Targets 1 | . . . . 1 . Max Gunslinging Chain 1 | . . . . 1 . Shots Hit Robots 176 | . 59 9 97 7 4 Core Hits 94 | . 20 8 53 13 . Critical Kills . | . . . . . . Critical Parts Destroyed 1 | . . . 1 . . Critical Strikes 7 | . 3 . 4 . . Burn 5 | . 2 . 3 . . Destroy 1 | . . . 1 . . Blast 1 | . 1 . . . . Melee Attacks . | . . . . . . Impact . | . . . . . . Slashing . | . . . . . . Piercing . | . . . . . . Sneak Attacks . | . . . . . . Combat Hostiles . | . . . . . . Follow-up Attacks . | . . . . . . Damage Inflicted 3588 | . 846 141 2212 389 . Guns 2423 | . 521 105 1695 102 . Cannons 361 | . 325 36 . . . Explosions 784 | . . . 501 283 . Melee . | . . . . . . Ramming 20 | . . . 16 4 . Kinetic 1354 | . 546 44 746 18 . Thermal 1761 | . 300 97 1215 149 . Explosive 134 | . . . . 134 . Electromagnetic 319 | . . . 235 84 . Impact . | . . . . . . Slashing . | . . . . . . Piercing . | . . . . . . Highest Corruption 10 | . . . 2 2 10 Average Corruption 1 | . . . 1 2 2 Corruption Purged . | . . . . . . Corruption Blocked . | . . . . . . Effects 43 | . . . 24 13 6 Message Errors 14 | . . . 9 4 1 Matter Fused 4 | . . . . 1 3 Heat Flow Errors 8 | . . . 5 2 1 Energy Discharges 6 | . . . 3 3 . Parts Rejected 1 | . . . 1 . . Data Loss (minor) 4 | . . . 3 1 . Data Loss (major) 5 | . . . 2 2 1 Alerts 1 | . . . 1 . . Overload Shots . | . . . . . . Overflow Damage 20 | . 11 . 9 . . Projectiles 11 | . 11 . . . . Explosions 9 | . . . 9 . . Melee . | . . . . . . Knockbacks 6 | . 6 . . . . Impact . | . . . . . . Kinetic 6 | . 6 . . . . Secondary . | . . . . . . Self-Inflicted Damage 99 | . . . 56 43 . Shots 6 | . . . 3 3 . Rammed 2 | . . . 2 . . Targets Rammed 4 | . . . 3 1 . Kicked . | . . . . . . Crushed 2 | . . . 1 1 . Highest Temperature 393 | . 219 138 393 229 225 Average Temperature 60 | . 52 57 64 73 113 Received Heat Transfer 638 | . 246 . 384 8 . Effects 1 | . . . 1 . . Short Circuit 1 | . . . 1 . . Siege Activations . | . . . . . . Robots Corrupted . | . . . . . . Combat Hostiles . | . . . . . . Parts Fried . | . . . . . . Impact Corruptions . | . . . . . . Robots Melted 1 | . 1 . . . . Combat Hostiles . | . . . . . . Parts Melted 5 | . 1 . 3 1 . Heat Transferred 3558 | . 864 222 2272 200 . Parts Sabotaged . | . . . . . . Parts Stolen . | . . . . . . Parts Stripped . | . . . . . . Power Chain Reactions 4 | . . . 3 1 . Alert | -11 -10 -10 -9 -9 -9 ------- Run | Yrd Mat Min Mat Min Exi Peak Influence 610 | . 211 104 570 610 . Initial 203 | . . 9 40 203 . Average 260 | . 58 42 396 343 . Maximum Alert Level 2 | . 1 . 2 2 . Low Security (%) 42 | 100 94 100 16 6 . Level 1 21 | . 5 . 15 57 . Level 2 36 | . . . 67 36 . Level 3 . | . . . . . . Level 4 . | . . . . . . Level 5 . | . . . . . . High Security . | . . . . . . Max Security . | . . . . . . Squads Dispatched 4 | . 3 . 1 . . Investigation 2 | . 1 . 1 . . Extermination . | . . . . . . Reinforcement 2 | . 2 . . . . Assault . | . . . . . . Garrison . | . . . . . . Intercept . | . . . . . . Searches Triggered . | . . . . . . Construction Impeded . | . . . . . . Haulers Reinforced . | . . . . . . Active Scanning Responses . | . . . . . . Cargo Convoy Interrupts . | . . . . . . Stealth | -11 -10 -10 -9 -9 -9 --------- Run | Yrd Mat Min Mat Min Exi Distress Signals 6 | . 1 . 5 . . Communications Jammed . | . . . . . . Distress Signals . | . . . . . . Times Spotted 95 | . 26 6 46 9 8 Peak Tracking Total 9 | . 4 3 9 4 9 Tactical Retreats 4 | . 2 . 2 . . Traps | -11 -10 -10 -9 -9 -9 ------- Run | Yrd Mat Min Mat Min Exi Traps Triggered 3 | . 1 . 2 . . Indirectly . | . . . . . . Trap Hack Attempts . | . . . . . . Triggered . | . . . . . . Disarmed . | . . . . . . Reprogrammed . | . . . . . . Reused . | . . . . . . Traps Extracted . | . . . . . . Installed . | . . . . . . Triggered . | . . . . . . Machines | -11 -10 -10 -9 -9 -9 ---------- Run | Yrd Mat Min Mat Min Exi Machines Disabled 24 | . . 2 4 18 . Max in Single Turn 18 | . . 1 3 18 . Machines Repaired . | . . . . . . Machines Dismantled . | . . . . . . Machines Sabotaged . | . . . . . . Overloaded Fab Kills . | . . . . . . Hacking | -11 -10 -10 -9 -9 -9 --------- Run | Yrd Mat Min Mat Min Exi Machines Accessed 17 | . 6 . 7 1 3 Terminals 13 | . 6 . 6 1 . Fabricators . | . . . . . . Repair Stations . | . . . . . . Recycling Units . | . . . . . . Scanalyzers 1 | . . . 1 . . Garrison Access . | . . . . . . Total Hacks 46 | . 22 . 17 2 5 Successful 26 | . 9 . 12 . 5 Failed 20 | . 13 . 5 2 . Catastrophic . | . . . . . . Database Lockouts . | . . . . . . Manual 35 | . 22 . 12 . 1 Terminals 39 | . 22 . 15 2 . Fabricators . | . . . . . . Repair Stations . | . . . . . . Recycling Units . | . . . . . . Scanalyzers 2 | . . . 2 . . Garrison Access . | . . . . . . Terminal Hacks 9 | . 2 . 2 . 5 Record 4 | . . . . . 4 Robot Analysis 1 | . . . 1 . . Prototype ID Bank 1 | . 1 . . . . Hauler Manifests 2 | . 1 . 1 . . Derelict Proto ID Bank 1 | . . . . . 1 Fabricator Hacks . | . . . . . . Repair Station Hacks . | . . . . . . Recycling Unit Hacks . | . . . . . . Scanalyzer 2 | . . . 2 . . Insert Component 1 | . . . 1 . . Analyze 1 | . . . 1 . . Garrison Access Hacks . | . . . . . . Unauthorized Hacks 15 | . 7 . 8 . . Terminals 15 | . 7 . 8 . . Botnet 5 | . 3 . 2 . . Operators 1 | . . . 1 . . Skim 9 | . 4 . 5 . . Fabricators . | . . . . . . Repair Stations . | . . . . . . Recycling Units . | . . . . . . Scanalyzers . | . . . . . . Garrison Access . | . . . . . . Data Cores Recovered . | . . . . . . Used . | . . . . . . Hacking Detections 11 | . 6 . 4 1 . Full Trace Events . | . . . . . . Feedback Events . | . . . . . . Feedback Blocked . | . . . . . . Robot Schematics Acquired . | . . . . . . Robots Built . | . . . . . . Authchips . | . . . . . . Time . | . . . . . . Total Robot Build Rating . | . . . . . . Part Schematics Acquired 1 | . . . 1 . . Parts Built . | . . . . . . Authchips . | . . . . . . Time . | . . . . . . Total Part Build Rating . | . . . . . . Parts Repaired . | . . . . . . Time . | . . . . . . Parts Recycled . | . . . . . . Recycled Matter . | . . . . . . Retrieved Matter . | . . . . . . Retrieved Components . | . . . . . . Parts Scanalyzed 1 | . . . 1 . . Part Schematics Acquired 1 | . . . 1 . . Parts Damaged . | . . . . . . Bothacking | -11 -10 -10 -9 -9 -9 ------------ Run | Yrd Mat Min Mat Min Exi Used RIF Installer . | . . . . . . Robots Hacked . | . . . . . . Non-combat . | . . . . . . Combat . | . . . . . . Robot Hacks Applied . | . . . . . . Relay Couplers Released . | . . . . . . Fabnet Peak Effective % . | . . . . . . Robots Rewired . | . . . . . . Allies Hacked . | . . . . . . Hacks Repelled . | . . . . . . Allies | -11 -10 -10 -9 -9 -9 -------- Run | Yrd Mat Min Mat Min Exi Total Allies 4 | . . 1 . 2 1 Largest Group 2 | . . 1 . 2 . Highest-Rated Group 45 | . . 31 . 45 . Highest-Rated Ally 31 | . . 31 . 31 . Total Orders . | . . . . . . Ally Attacks 24 | . . 5 . 17 2 Total Damage 295 | . . 62 . 201 32 Kills 3 | . . . . 3 . Allies Corrupted . | . . . . . . Allies Melted . | . . . . . . Field Lobotomies 1 | . . . . . 1 Intel | -11 -10 -10 -9 -9 -9 ------- Run | Yrd Mat Min Mat Min Exi Robot Analysis Total 1 | . . . 1 . . Derelict Logs Recovered 1 | . . . . 1 . Drone Launches . | . . . . . . Drone Recoveries . | . . . . . . Exploration | -11 -10 -10 -9 -9 -9 ------------- Run | Yrd Mat Min Mat Min Exi Turns Passed 6294 | 90 1510 508 2382 1384 420 Spaces Moved 2550 | 56 620 273 826 542 233 Core 7 | 7 . . . . . Treads 2542 | 49 620 273 825 542 233 Legs . | . . . . . . Wheels . | . . . . . . Hover . | . . . . . . Flight 1 | . . . 1 . . Fastest Speed 50 | 50 160 160 160 250 170 Average Speed 192 | 146 160 160 200 250 170 Slowest Speed 550 | 160 160 160 550 250 170 Overloaded Moves . | . . . . . . Propulsion Burnouts . | . . . . . . Robots Hopped . | . . . . . . Cave-ins Triggered . | . . . . . . Exploration Rate (%) 64 | 5 88 61 89 100 42 Regions Visited 5 Branch Regions 3 Pre-discovered Areas 5 | . . . 4 1 . Known Exits Taken . | . . . . . . Unknown Exits Taken 5 | 1 1 1 1 1 . Scrap Searched 3 | . . . . 3 . Spaces Dug 4 | . . . 4 . . Terrain Destroyed 111 | . . . 28 83 . Melee . | . . . . . . Projectile . | . . . . . . AOE 111 | . . . 28 83 . Terrain Rammed . | . . . . . . Walls Destroyed . | . . . . . . Machines Disabled . | . . . . . . Actions | -11 -10 -10 -9 -9 -9 --------- Run | Yrd Mat Min Mat Min Exi Total 3663 | 61 1038 325 1430 559 250 Wait 860 | . 356 37 451 8 8 Move 2545 | 55 619 272 825 541 233 Hop . | . . . . . . Pick Up 31 | . 3 4 23 . 1 Fast Attach 13 | 6 1 . 6 . . Attach 3 | . . . 2 . 1 Detach . | . . . . . . Swap 36 | . 10 3 21 2 . Drop 25 | . . . 22 . 3 Fire 146 | . 49 9 77 7 4 Melee . | . . . . . . Ram . | . . . . . . Kick . | . . . . . . Crush 4 | . . . 3 1 . Escape Stasis . | . . . . . . Rewire . | . . . . . . Trap . | . . . . . . Miscellaneous . | . . . . . . Route ------- -11/Scrapyard -10/Materials (discovered 4 exits: *Mat x3 / [*Min]) -10/Mines -9/Materials (discovered 5 exits: *Mat x3 / *Min x2) -9/Mines (discovered 3 exits: *Mat x2 / *Exi) -9/Exiles History --------- Turn | Location | Event 25 | -11/Scrapyard | Discovered new exit (range 15) 91 | -11/Scrapyard | Entered Materials 200 | -10/Materials | Discovered new exit (range 15) 310 | -10/Materials | Build established: Mutant 427 | -10/Materials | Discovered new exit (range 10) 606 | -10/Materials | Discovered new exit (range 15) 1288 | -10/Materials | Discovered new exit (range 16) 1601 | -10/Materials | Entered Mines 1653 | -10/Mines | Met a Derelict bent on vengeance 1662 | -10/Mines | Found a damaged Exp. Sensor Array with a note attached 1665 | -10/Mines | Found Prototype Device 1878 | -10/Mines | Received a Mining Laser from a helpful Derelict 2025 | -10/Mines | Discovered new exit (range 9) 2109 | -10/Mines | Entered Materials 2109 | -9/Materials | Evolved 2 slots: Utility x2 2426 | -9/Materials | Discovered new exit (range 15) 2612 | -9/Materials | Build established: Scavenger-Mutant 2657 | -9/Materials | Destroyed 7 combat bots 2900 | -9/Materials | Discovered new exit (range 15) 3025 | -9/Materials | Discovered new exit (range 16) 3070 | -9/Materials | Build established: Mutant 3330 | -9/Materials | Core integrity fell below 50% 3389 | -9/Materials | Lost 3 parts (1n2u) 4064 | -9/Materials | Discovered new exit (range 16) 4275 | -9/Materials | Loaded intel: 11 terminal locations 4329 | -9/Materials | Identified exit to Materials 4341 | -9/Materials | Learned 4 Recycling zone layouts 4347 | -9/Materials | Learned location of 1 exit from Storage 4348 | -9/Materials | Learned Materials terminal intel 4360 | -9/Materials | Learned location of Zion (-6) 4381 | -9/Materials | Learned location of Recycling (-7) 4491 | -9/Materials | Entered Mines 4539 | -9/Mines | Discovered exit to Materials (range 6) 4540 | -9/Mines | Learned location of Storage (-7) 4673 | -9/Mines | Discovered exit to Materials (range 14) 5378 | -9/Mines | Learned 2 Materials zone layouts 5865 | -9/Mines | Deemed a non-threat by the Exiles lab entrance 5865 | -9/Mines | Discovered new exit (range 5) 5875 | -9/Mines | Entered Exiles 5922 | -9/Exiles | Met 8R-AWN 5951 | -9/Exiles | Met EX-HEX 6004 | -9/Exiles | Met EX-BIN 6052 | -9/Exiles | Aligned with FarCom system 6053 | -9/Exiles | Given EX-Vault access code 6092 | -9/Exiles | Opened EX-Vault 6101 | -9/Exiles | Found Field Lobotomy Kit 6164 | -9/Exiles | Warned to stay clear of 0b10 Research branches 6273 | -9/Exiles | Attacked by the Exiles 6281 | -9/Exiles | Assimilated as-29585 with FLK Orb 6289 | -9/Exiles | Core integrity fell below 20% 6292 | -9/Exiles | System corruption reached 10% 6295 | -9/Exiles | Destroyed by as-05131 with Assembled Maul Last Messages --------------- 06285_ Imp. Ion Engine destroyed. 06285_ System corrupted by crushing effect (+4). 06286_ Penetrated by HV Slug. 06286_ HV Slug penetrates Earth. 06286_ Penetrated by HV Slug. 06286_ HV Slug penetrates Earth. 06288_ Arm. Treads severed. 06289_ HV Slug penetrates Machine. 06289_ HV Slug penetrates Wall. 06289_ Penetrated by HV Slug. 06289_ HV Slug penetrates Earth. 06289_ Machine disabled. 06291_ Penetrated by HV Slug. 06291_ HV Slug penetrates Earth. 06291_ Penetrated by HV Slug. 06291_ Imp. Heat Sink destroyed. 06291_ Field Lobotomy Kit destroyed. 06291_ System corrupted by crushing effect (+2). 06293_ Penetrated by HV Slug. 06295_ System corrupted: Matter fused (-10). Map ----- +----------------------------------------------------+ | ""#??????????????????????????????????????????????? | | ""#??????????????????????????????????????????????? | | ""#??????????????????????????????????????????????? | | ""#??????????????????????????????????????????????? | | ""#??????????????????????????????????????????????? | | ""#??????????????????????????????????????????????? | | ""##?????????????????????????????????????????????? | | """"?????????????????????????????????????????????? | | ""##?????????????????????????????????????????????? | | """"?????????????????????????????????????????????? | | # ?????????????????????????????????????????????? | | ""#??????????????????????????????????????????????? | | ###??????????????????????????????????????????????? | | ?????????????????????????????????????????????????? | | ?????????????????????????????????????????????????? | | ????????????????????????????????????????????? ???? | | #########???????????????????????????????????? ?? | | """"""""##??????????????????????????????????? ? | | """ """"##?????????????????????????????????# #? | | "" " #???????????????????????????????## ## | | " """#???????????????????????????????# # | | " "#???????????#####???????????????# # | | " "##?????????##" #??????????????## ? | | ""###???????#" g #?????????????## #?? | | """#??????## aa ##????????????# #?? | | "#????### =@ ###????????### #??? | | ##???# a% ########## #??? | | ##?## #""""## #???? | | ### * ##??? | | #; * #??? | | ##;# ##?? | | aa ""##;"""""#### ### | | #"""###;######??#### * # | | ######?# #??????????##### | | ##??????# ???????????????### | | " ##???????# ?????????????????### | | """ ""#????????# ???????????????????### | | ""#" "##????????# ????????????????????#" | | ""?##"""""""##?????????? ????????????????????#### | | "???#########??????????? ???????????????????????# | | ???????????????????????? ???????????????????????## | | ?????????????????????????????????????????????????# | | ?????????????????????????????????????????????????? | | ?????????????????????????????????????????????????? | | ?????????????????????????????????????????????????? | | ?????????????????????????????????????????????????? | | ?????????????????????????????????????????????????? | | ?????????????????????????????????????????????????? | | ?????????????????????????????????????????????????? | | ?????????????????????????????????????????????????? | +----------------------------------------------------+ Best States ------------- Heat Dissipation 42 Energy Generation 18 Energy Capacity 265 Matter Stores 300 Matter Capacity 300 Sight Range 16 Terrain Scan Density 10 Armor Coverage 375 Propulsion Shielding 33 Weapon Shielding 66 Evasion (%) 40 Targeting Accuracy 10 Recoil Reduction 2 Item Schematics ----------------- Adv. Beam Cannon | -9/Materials | Scanalyzed Robot Schematics ------------------ None Fabricated ------------ Nothing Alien Tech Used ----------------- None Achievements -------------- It Was An Accident, I Swear Challenges ------------ None Game ------ Seed TargetCryofiberUnit Manual? 0 Play Time 00:40:57 Cumulative 61.1 hours Start 2024.08.28 @ 12:13:15 End 2024.08.28 @ 13:29:45 Sessions 1 Manual Loads 0 Difficulty Rogue Special Mode None Game No. 110 Rogue 110 Adventurer 0 Explorer 0 Win Type - Total 0 Types 0/0/0/0/0/0/0/0/0 Lore% 23 Gallery% 43 Achievement% 36 Wizard Run 0 Options --------- Layout 0 ASCII 0 Keyboard 0 Movement Numpad Keybinds 0 Fullscreen 2 Font 18/SmallcapsGlow Map View 76x50 Zoom Use 0% Tactical HUD 1 Map Filters NONE Filters NONE Steam 1 RUN: 926b71f3-2c97-4c42-b0ff-94909bf6d416